[Event "43. Zurich Weihnachtsopen 2019"]
[Site "Zurich/SUI"]
[Date "2019.12.26"]
[Round "1.1"]
[White "Schweighoffer, Martin"]
[Black "Lagarde, Maxime"]
[Result "0-1"]
[ECO "B06"]
[WhiteElo "2138"]
[BlackElo "2655"]
[Annotator "ChessBase"]
[PlyCount "84"]
[EventDate "2019.12.26"]
[EventType "swiss"]
[SourceTitle "playchess.com"]
[Source "ChessBase"]
[SourceQuality "1"]
[TimeControl "40/5400+30:1800+30"]

1. e4 {[%emt 0:00:00]} g6 {[%emt 0:00:00]} 2. d4 {[%emt 0:00:51]} Bg7 {[%emt 0:00:00]} 3. f4 {[%emt 0:01:33]} d5 {[%emt 0:00:46]} 4. e5 {[%emt 0:01:15]} Nh6 {[%emt 0:00:58]} 5. Nf3 {[%emt 0:01:10]} Bg4 {[%emt 0:02:48]} 6. Be2 {[%emt 0:01:01]} Bxf3 {[%emt 0:01:06]} 7. Bxf3 {[%emt 0:00:06]} e6 {[%emt 0:00:41]} 8. Be3 {[%emt 0:03:08]} Nf5 {[%emt 0:00:19]} 9. Bf2 {[%emt 0:00:03]} h5 {[%emt 0:00:43]} 10. Qe2 {[%emt 0:01:49]} c6 {[%emt 0:01:40]} 11. Nd2 {[%emt 0:04:48]} Nd7 {[%emt 0:01:08]} 12. g3 {[%emt 0:05:21]} a5 {[%emt 0:02:09]} 13. a4 {[%emt 0:01:21]} Bf8 {[%emt 0:00:51]} 14. Nb3 {[%emt 0:01:57]} Nb6 {[%emt 0:06:58]} 15. Nc1 {[%emt 0:12:38]} Rc8 {[%emt 0:09:50]} 16. Nd3 {[%emt 0:00:55]} Nd7 {[%emt 0:00:15]} 17. O-O {[%emt 0:02:05]} Be7 {[%emt 0:09:20]} 18. Rfd1 {[%emt 0:02:00]} Kf8 {[%emt 0:00:35]} 19. c3 {[%emt 0:04:40]} Kg7 {[%emt 0:01:27]} 20. Rac1 {[%emt 0:08:18]} Qb6 {[%emt 0:05:40]} 21. Ra1 {[%emt 0:05:04]} Qc7 {[%emt 0:01:50]} 22. Rac1 {[%emt 0:00:20]} b5 {[%emt 0:03:15]} 23. Ra1 {[%emt 0:07:37]} Qb6 {[%emt 0:07:28]} 24. Rdc1 {[%emt 0:04:45]} bxa4 {[%emt 0:03:15]} 25. Rxa4 {[%emt 0:00:22]} c5 {[%emt 0:01:05]} 26. dxc5 {[%emt 0:01:07]} Nxc5 {[%emt 0:00:46]} 27. b4 {[%emt 0:03:16]} axb4 {[%emt 0:00:54]} 28. cxb4 {[%emt 0:06:40]} Nxd3 {[%emt 0:01:31]} 29. Rxc8 {[%emt 0:00:06]} Nxf2 {[%emt 0:00:05]} 30. Rxh8 {[%emt 0:02:44]} Ng4+ {[%emt 0:00:05]} 31. Kh1 {[%emt 0:01:20]} Kxh8 {[%emt 0:00:05]} 32. Bxg4 {[%emt 0:01:23]} hxg4 {[%emt 0:00:04]} 33. b5 {[%emt 0:03:04]} Kg7 {[%emt 0:01:10]} 34. Ra6 {[%emt 0:00:51]} Qd4 {[%emt 0:00:39]} 35. Ra2 {[%emt 0:02:11]} Bc5 {[%emt 0:00:16]} 36. Qe1 {[%emt 0:00:32]} Ne3 {[%emt 0:00:28]} 37. h4 {[%emt 0:00:55]} gxh3 {[%emt 0:03:22]} 38. Kh2 {[%emt 0:00:37]} Qe4 {[%emt 0:00:06]} 39. Re2 {[%emt 0:01:37]} d4 {[%emt 0:00:25]} 40. Kxh3 {[%emt 0:02:02]} d3 {[%emt 0:00:14]} 41. Rb2 {[%emt 0:31:02]} Qf5+ {[%emt 0:31:28]} 42. Kh2 {[%emt 0:00:02]} Qh5+ {[%emt 0:00:04]} 0-1

[Event "43. Zurich Weihnachtsopen 2019"]
[Site "Zurich/SUI"]
[Date "2019.12.26"]
[Round "1.2"]
[White "Martirosyan, Haik M."]
[Black "Kornitzky, Tino"]
[Result "1-0"]
[ECO "D52"]
[WhiteElo "2613"]
[BlackElo "2135"]
[Annotator "ChessBase"]
[PlyCount "49"]
[EventDate "2019.12.26"]
[EventType "swiss"]
[SourceTitle "playchess.com"]
[Source "ChessBase"]
[SourceQuality "1"]
[TimeControl "40/5400+30:1800+30"]

1. d4 {[%emt 0:00:00]} Nf6 {[%emt 0:00:00]} 2. c4 {[%emt 0:00:00]} e6 {[%emt 0:00:00]} 3. Nf3 {[%emt 0:00:21]} d5 {[%emt 0:00:00]} 4. Nc3 {[%emt 0:00:38]} Nbd7 {[%emt 0:00:12]} 5. Bg5 {[%emt 0:01:25]} c6 {[%emt 0:00:07]} 6. e3 {[%emt 0:00:45]} Qa5 {[%emt 0:00:09]} 7. cxd5 {[%emt 0:01:47]} Nxd5 {[%emt 0:00:21]} 8. Rc1 {[%emt 0:00:55]} Bb4 {[%emt 0:02:18]} 9. Qd2 {[%emt 0:05:02]} c5 {[%emt 0:02:45]} 10. a3 {[%emt 0:02:53]} Bxc3 {[%emt 0:01:19]} 11. bxc3 {[%emt 0:02:00]} b6 {[%emt 0:03:16]} 12. Bd3 {[%emt 0:04:34]} Ba6 {[%emt 0:01:50]} 13. e4 {[%emt 0:02:04]} Bxd3 {[%emt 0:04:44]} 14. Qxd3 {[%emt 0:00:54]} Nc7 {[%emt 0:05:22]} 15. O-O {[%emt 0:02:29]} O-O {[%emt 0:01:59]} 16. Bf4 {[%emt 0:03:30]} Rac8 {[%emt 0:03:24]} 17. Nd2 {[%emt 0:05:50]} b5 {[%emt 0:18:07]} 18. Qg3 {[%emt 0:03:52]} Rfe8 {[%emt 0:03:45]} 19. Nb3 {[%emt 0:03:36]} Qb6 {[%emt 0:00:44]} 20. Bh6 {[%emt 0:01:10]} g6 {[%emt 0:01:39]} 21. Nxc5 {[%emt 0:01:38]} Re7 {[%emt 0:07:05]} 22. Qh4 {[%emt 0:03:18]} Nxc5 {[%emt 0:03:52]} 23. Qf6 {[%emt 0:00:14]} Ne8 {[%emt 0:00:37]} 24. Qxe7 {[%emt 0:00:06]} Nxe4 {[%emt 0:00:32]} 25. Qf8# {[%emt 0:01:04]} 1-0

[Event "43. Zurich Weihnachtsopen 2019"]
[Site "Zurich/SUI"]
[Date "2019.12.26"]
[Round "1.3"]
[White "Narland, Tallak U."]
[Black "Svane, Rasmus"]
[Result "0-1"]
[ECO "B13"]
[WhiteElo "2132"]
[BlackElo "2597"]
[Annotator "ChessBase"]
[PlyCount "52"]
[EventDate "2019.12.26"]
[EventType "swiss"]
[SourceTitle "playchess.com"]
[Source "ChessBase"]
[SourceQuality "1"]
[TimeControl "40/5400+30:1800+30"]

1. e4 {[%emt 0:00:00]} c6 {[%emt 0:00:00]} 2. d4 {[%emt 0:00:00]} d5 {[%emt 0:00:00]} 3. exd5 cxd5 {[%emt 0:00:00]} 4. Bd3 {[%emt 0:01:01]} Nc6 {[%emt 0:05:22]} 5. c3 {[%emt 0:00:11]} Qc7 {[%emt 0:00:48]} 6. Ne2 {[%emt 0:01:48]} Bg4 {[%emt 0:00:10]} 7. f3 {[%emt 0:03:34]} Bd7 {[%emt 0:01:21]} 8. Qb3 {[%emt 0:08:18]} Nf6 {[%emt 0:10:28]} 9. Bf4 {[%emt 0:06:12]} e5 {[%emt 0:00:24]} 10. dxe5 {[%emt 0:00:44]} Nxe5 {[%emt 0:00:12]} 11. Bb5 {[%emt 0:02:36]} Bd6 {[%emt 0:01:26]} 12. Bxd7+ {[%emt 0:02:07]} Qxd7 {[%emt 0:06:50]} 13. O-O {[%emt 0:02:24]} O-O {[%emt 0:00:17]} 14. Nd2 {[%emt 0:02:33]} Rfe8 {[%emt 0:04:17]} 15. Nd4 {[%emt 0:16:13]} Nc4 {[%emt 0:04:53]} 16. Bg5 {[%emt 0:13:34]} h6 {[%emt 0:00:46]} 17. Bxh6 {[%emt 0:03:00]} gxh6 {[%emt 0:01:05]} 18. Nxc4 {[%emt 0:00:36]} dxc4 {[%emt 0:00:02]} 19. Qxc4 {[%emt 0:00:17]} Rac8 {[%emt 0:08:28]} 20. Qd3 {[%emt 0:02:00]} Bc5 {[%emt 0:00:07]} 21. Rad1 {[%emt 0:00:52]} Nd5 {[%emt 0:05:52]} 22. Rfe1 {[%emt 0:01:50]} Nf4 {[%emt 0:00:51]} 23. Qd2 {[%emt 0:01:24]} Bxd4+ {[%emt 0:01:01]} 24. cxd4 {[%emt 0:00:51]} Qf5 {[%emt 0:01:11]} 25. Rxe8+ {[%emt 0:02:39]} Rxe8 {[%emt 0:00:04]} 26. g3 {[%emt 0:01:02]} Re2 {[%emt 0:04:56]} 0-1

[Event "43. Zurich Weihnachtsopen 2019"]
[Site "Zurich/SUI"]
[Date "2019.12.26"]
[Round "1.6"]
[White "Grover, Sahaj"]
[Black "Sertbay, Huseyin"]
[Result "1-0"]
[ECO "A56"]
[WhiteElo "2508"]
[BlackElo "2106"]
[Annotator "ChessBase"]
[PlyCount "63"]
[EventDate "2019.12.26"]
[EventType "swiss"]
[SourceTitle "playchess.com"]
[Source "ChessBase"]
[SourceQuality "1"]
[TimeControl "40/5400+30:1800+30"]

1. d4 {[%emt 0:00:00]} Nf6 {[%emt 0:00:00]} 2. c4 {[%emt 0:00:00]} c5 {[%emt 0:00:16]} 3. d5 {[%emt 0:00:01]} e5 {[%emt 0:02:19]} 4. Nc3 {[%emt 0:00:39]} d6 {[%emt 0:00:04]} 5. e4 {[%emt 0:00:05]} Nbd7 {[%emt 0:00:03]} 6. Bd3 {[%emt 0:00:06]} Be7 {[%emt 0:00:05]} 7. Nge2 {[%emt 0:00:06]} Nf8 {[%emt 0:00:05]} 8. Ng3 {[%emt 0:00:05]} Ng6 {[%emt 0:00:28]} 9. Nf5 {[%emt 0:00:12]} O-O {[%emt 0:03:35]} 10. Qf3 {[%emt 0:00:26]} Ne8 {[%emt 0:05:22]} 11. h4 {[%emt 0:01:08]} Bf6 {[%emt 0:12:00]} 12. Ne2 {[%emt 0:06:18]} Bxf5 {[%emt 0:10:04]} 13. exf5 {[%emt 0:00:24]} e4 {[%emt 0:00:16]} 14. Qxe4 {[%emt 0:00:29]} Ne5 {[%emt 0:00:29]} 15. Bc2 {[%emt 0:16:51]} Nc7 {[%emt 0:02:45]} 16. g4 {[%emt 0:00:26]} Re8 {[%emt 0:04:04]} 17. g5 {[%emt 0:00:30]} Nc6 {[%emt 0:09:28]} 18. Qg4 {[%emt 0:03:55]} Nd4 {[%emt 0:00:37]} 19. Be4 {[%emt 0:01:26]} Nxe2 {[%emt 0:14:44]} 20. Kxe2 {[%emt 0:02:17]} Bd4 {[%emt 0:06:04]} 21. Kf3 {[%emt 0:07:24]} Qd7 {[%emt 0:00:58]} 22. h5 {[%emt 0:06:34]} b5 {[%emt 0:09:12]} 23. cxb5 {[%emt 0:08:38]} Rxe4 {[%emt 0:03:55]} 24. Qxe4 {[%emt 0:00:44]} Re8 {[%emt 0:00:03]} 25. Qg4 {[%emt 0:10:03]} Nxd5 {[%emt 0:00:17]} 26. Kg2 {[%emt 0:01:34]} Qxb5 {[%emt 0:01:55]} 27. Qf3 {[%emt 0:01:42]} Qc4 {[%emt 0:06:47]} 28. Bd2 {[%emt 0:01:01]} Bxf2 {[%emt 0:05:31]} 29. b3 {[%emt 0:00:07]} Qe2 {[%emt 0:00:27]} 30. Qxf2 {[%emt 0:00:53]} Qg4+ {[%emt 0:01:05]} 31. Kf1 {[%emt 0:00:02]} Re5 {[%emt 0:00:33]} 32. Rh4 {[%emt 0:00:13]} 1-0

[Event "43. Zurich Weihnachtsopen 2019"]
[Site "Zurich/SUI"]
[Date "2019.12.26"]
[Round "1.7"]
[White "Borner, Daniel"]
[Black "Henderson de La Fuente, Lance"]
[Result "0-1"]
[ECO "B20"]
[WhiteElo "2105"]
[BlackElo "2492"]
[Annotator "ChessBase"]
[PlyCount "100"]
[EventDate "2019.12.26"]
[EventType "swiss"]
[SourceTitle "playchess.com"]
[Source "ChessBase"]
[SourceQuality "1"]
[TimeControl "40/5400+30:1800+30"]

1. e4 {[%emt 0:00:00]} c5 {[%emt 0:00:00]} 2. d3 {[%emt 0:00:00]} e6 {[%emt 0:01:50]} 3. f4 {[%emt 0:01:29]} d5 {[%emt 0:00:14]} 4. Qe2 {[%emt 0:01:28]} Nc6 {[%emt 0:02:07]} 5. Nf3 {[%emt 0:00:13]} Nge7 {[%emt 0:04:19]} 6. g3 {[%emt 0:01:49]} g6 {[%emt 0:00:34]} 7. Bg2 {[%emt 0:00:33]} Bg7 {[%emt 0:00:05]} 8. O-O {[%emt 0:00:14]} O-O {[%emt 0:00:05]} 9. c3 {[%emt 0:01:50]} b6 {[%emt 0:00:52]} 10. e5 {[%emt 0:03:24]} Bb7 {[%emt 0:09:50]} 11. Na3 {[%emt 0:05:47]} Qd7 {[%emt 0:01:08]} 12. Nc2 {[%emt 0:00:31]} a5 {[%emt 0:09:21]} 13. Be3 {[%emt 0:06:40]} Ba6 {[%emt 0:07:06]} 14. Rad1 {[%emt 0:04:32]} f6 {[%emt 0:05:14]} 15. exf6 {[%emt 0:01:48]} Bxf6 {[%emt 0:00:33]} 16. Bf2 {[%emt 0:04:48]} Rae8 {[%emt 0:02:32]} 17. Rfe1 {[%emt 0:08:24]} Nf5 {[%emt 0:01:20]} 18. Qd2 {[%emt 0:04:30]} d4 {[%emt 0:07:40]} 19. c4 {[%emt 0:01:12]} e5 {[%emt 0:04:20]} 20. fxe5 {[%emt 0:01:09]} Nxe5 {[%emt 0:06:30]} 21. Nxe5 {[%emt 0:01:17]} Bxe5 {[%emt 0:00:23]} 22. Re2 {[%emt 0:03:03]} Bf6 {[%emt 0:07:17]} 23. Rde1 {[%emt 0:10:02]} Kg7 {[%emt 0:01:05]} 24. Rxe8 {[%emt 0:02:33]} Rxe8 {[%emt 0:00:02]} 25. Rxe8 {[%emt 0:02:11]} Qxe8 {[%emt 0:00:02]} 26. b3 {[%emt 0:06:40]} h5 {[%emt 0:02:58]} 27. Be4 {[%emt 0:04:09]} Nd6 {[%emt 0:00:32]} 28. Bd5 {[%emt 0:00:41]} Nf7 {[%emt 0:02:21]} 29. Qe1 {[%emt 0:06:24]} Ne5 {[%emt 0:00:26]} 30. Qe2 {[%emt 0:02:56]} Bc8 {[%emt 0:00:19]} 31. Ne1 {[%emt 0:00:30]} Bg4 {[%emt 0:00:18]} 32. Qb2 {[%emt 0:03:02]} Bg5 {[%emt 0:03:02]} 33. a3 {[%emt 0:01:05]} Bf5 {[%emt 0:03:34]} 34. b4 {[%emt 0:04:47]} axb4 {[%emt 0:00:14]} 35. axb4 {[%emt 0:00:04]} Qe7 {[%emt 0:00:49]} 36. bxc5 {[%emt 0:00:17]} bxc5 {[%emt 0:00:02]} 37. Qb8 {[%emt 0:02:39]} Nf7 {[%emt 0:00:14]} 38. Qa8 {[%emt 0:03:27]} Bf6 {[%emt 0:01:28]} 39. Qb8 {[%emt 0:00:23]} Ne5 {[%emt 0:06:36]} 40. Qb3 {[%emt 0:02:10]} Ng4 {[%emt 0:00:52]} 41. Qb2 {[%emt 0:02:08]} Bg5 {[%emt 0:01:11]} 42. Qb8 {[%emt 0:02:51]} Nf6 {[%emt 0:02:20]} 43. Nf3 {[%emt 0:06:05]} Be3 {[%emt 0:03:11]} 44. Ne5 {[%emt 0:02:29]} Kh7 {[%emt 0:13:55]} 45. Qb7 {[%emt 0:07:29]} Nxd5 {[%emt 0:01:03]} 46. Qxd5 {[%emt 0:00:04]} Bh6 {[%emt 0:00:40]} 47. Nc6 {[%emt 0:02:33]} Qb7 {[%emt 0:04:20]} 48. h4 {[%emt 0:07:02]} Bxd3 {[%emt 0:04:44]} 49. Qxc5 {[%emt 0:02:53]} Qb1+ {[%emt 0:00:23]} 50. Kh2 {[%emt 0:00:43]} Be4 {[%emt 0:00:12]} 0-1

[Event "43. Zurich Weihnachtsopen 2019"]
[Site "Zurich/SUI"]
[Date "2019.12.26"]
[Round "1.8"]
[White "Pikula, Dejan"]
[Black "Froewis, Annika"]
[Result "1-0"]
[ECO "D02"]
[WhiteElo "2444"]
[BlackElo "2100"]
[Annotator "NA"]
[PlyCount "85"]
[EventDate "2019.12.26"]
[EventType "swiss"]
[SourceTitle "playchess.com"]
[Source "ChessBase"]
[SourceQuality "1"]
[TimeControl "40/5400+30:1800+30"]

1. d4 {[%emt 0:00:00]} d5 {[%emt 0:00:00]} 2. Bf4 {[%emt 0:00:00]} Nf6 {[%emt 0:00:00]} 3. e3 {[%emt 0:00:00]} e6 {[%emt 0:01:45]} 4. Nd2 {[%emt 0:01:48]} c5 {[%emt 0:00:19]} 5. c3 {[%emt 0:00:05]} Nc6 {[%emt 0:00:21]} 6. Ngf3 {[%emt 0:00:33]} cxd4 {[%emt 0:00:26]} 7. exd4 {[%emt 0:00:07]} Nh5 {[%emt 0:00:19]} 8. Be3 {[%emt 0:00:37]} g6 {[%emt 0:01:47]} 9. Bd3 {[%emt 0:01:45]} Qc7 {[%emt 0:07:21]} 10. O-O {[%emt 0:00:43]} Bg7 {[%emt 0:06:56]} 11. Re1 {[%emt 0:00:36]} O-O {[%emt 0:00:24]} 12. Nf1 {[%emt 0:00:16]} f6 {[%emt 0:02:59]} 13. Bc2 {[%emt 0:03:43]} Rd8 {[%emt 0:09:28]} 14. Qd2 {[%emt 0:11:51]} Bf8 {[%emt 0:12:20]} 15. Ng3 {[%emt 0:02:59]} Ng7 {[%emt 0:05:32]} 16. Bf4 {[%emt 0:00:24]} Qf7 {[%emt 0:04:30]} 17. a4 {[%emt 0:02:10]} Ne8 {[%emt 0:02:17]} 18. h4 {[%emt 0:05:10]} Nd6 {[%emt 0:01:38]} 19. b3 {[%emt 0:01:04]} b6 {[%emt 0:05:10]} 20. Kh2 {[%emt 0:02:33]} Qg7 {[%emt 0:07:39]} 21. Re3 {[%emt 0:06:46]} Nf7 {[%emt 0:04:35]} 22. Rae1 {[%emt 0:00:59]} Re8 {[%emt 0:08:57]} 23. b4 {[%emt 0:10:38]} Bd7 {[%emt 0:01:13]} 24. Bb3 {[%emt 0:00:32]} Rac8 {[%emt 0:03:21]} 25. Kg1 {[%emt 0:03:17]} h6 {[%emt 0:02:46]} 26. Rd3 {[%emt 0:03:23]} g5 {[%emt 0:05:00]} 27. Nh5 {[%emt 0:00:45]} Qg6 {[%emt 0:00:44]} 28. Nxf6+ {[%emt 0:00:11]} Qxf6 {[%emt 0:00:26]} 29. hxg5 {[%emt 0:00:05]} hxg5 {[%emt 0:01:09]} 30. Nxg5 {[%emt 0:00:21]} Ne7 {[%emt 0:02:48]} 31. Rg3 {[%emt 0:03:53]} Ng6 {[%emt 0:00:34]} 32. Be5 {[%emt 0:02:31]} Nfxe5 {[%emt 0:00:05]} 33. dxe5 {[%emt 0:00:05]} Qg7 {[%emt 0:02:24]} 34. Bc2 {[%emt 0:00:49]} Rc4 {[%emt 0:01:01]} 35. Nf3 {[%emt 0:02:23]} Kf7 {[%emt 0:00:32]} 36. Bxg6+ {[%emt 0:02:57]} Qxg6 {[%emt 0:00:29]} 37. Rxg6 {[%emt 0:00:07]} Kxg6 {[%emt 0:00:04]} 38. Qg5+ {[%emt 0:00:08]} Kh7 {[%emt 0:00:40]} 39. Qh5+ {[%emt 0:00:14]} Kg8 {[%emt 0:00:49]} 40. Qg6+ {[%emt 0:00:53]} Bg7 {[%emt 0:00:33]} 41. Ng5 {[%emt 0:30:51]} Rf4 {[%emt 0:03:32]} 42. Re3 {[%emt 0:00:00]} Kf8 {[%emt 0:02:03]} 43. Nh7+ {[%emt 0:00:00]} 1-0

[Event "43. Zurich Weihnachtsopen 2019"]
[Site "Zurich/SUI"]
[Date "2019.12.27"]
[Round "2.1"]
[White "Lagarde, Maxime"]
[Black "Koskinen, Henri"]
[Result "1-0"]
[ECO "A03"]
[WhiteElo "2655"]
[BlackElo "2256"]
[Annotator "ChessBase"]
[PlyCount "59"]
[EventDate "2019.12.26"]
[EventType "swiss"]
[SourceTitle "playchess.com"]
[Source "ChessBase"]
[SourceQuality "1"]
[TimeControl "40/5400+30:1800+30"]

1. g3 {[%emt 0:05:11]} d5 {[%emt 0:00:32]} 2. Bg2 {[%emt 0:00:11]} Nf6 {[%emt 0:01:41]} 3. f4 {[%emt 0:00:45]} g6 {[%emt 0:05:13]} 4. Nf3 {[%emt 0:00:05]} Bg7 {[%emt 0:00:12]} 5. O-O {[%emt 0:00:05]} O-O {[%emt 0:00:04]} 6. d3 {[%emt 0:00:07]} b5 {[%emt 0:08:49]} 7. Qe1 {[%emt 0:06:52]} Bb7 {[%emt 0:00:22]} 8. a4 {[%emt 0:01:22]} bxa4 {[%emt 0:03:27]} 9. Nc3 {[%emt 0:00:53]} e6 {[%emt 0:03:13]} 10. e4 {[%emt 0:01:56]} Nbd7 {[%emt 0:05:57]} 11. e5 {[%emt 0:02:31]} Ne8 {[%emt 0:00:39]} 12. Nxa4 {[%emt 0:01:13]} c5 {[%emt 0:02:39]} 13. b4 {[%emt 0:02:12]} cxb4 {[%emt 0:08:41]} 14. Qxb4 {[%emt 0:00:06]} Qc8 {[%emt 0:02:09]} 15. Be3 {[%emt 0:02:27]} Nc7 {[%emt 0:02:37]} 16. Rfb1 {[%emt 0:03:48]} Bc6 {[%emt 0:10:21]} 17. Nd4 {[%emt 0:00:10]} Bxa4 {[%emt 0:00:19]} 18. Qxa4 {[%emt 0:00:32]} Re8 {[%emt 0:04:44]} 19. c4 {[%emt 0:05:25]} Bf8 {[%emt 0:07:04]} 20. Nb3 {[%emt 0:02:51]} f6 {[%emt 0:06:40]} 21. Rc1 {[%emt 0:05:45]} Nb6 {[%emt 0:05:14]} 22. Qa5 {[%emt 0:03:46]} fxe5 {[%emt 0:03:06]} 23. fxe5 {[%emt 0:01:20]} Qd7 {[%emt 0:01:43]} 24. c5 {[%emt 0:01:10]} Nc8 {[%emt 0:01:07]} 25. c6 {[%emt 0:01:30]} Qd8 {[%emt 0:03:55]} 26. Nc5 {[%emt 0:01:04]} Nb6 {[%emt 0:04:22]} 27. Nd7 {[%emt 0:02:05]} Bg7 {[%emt 0:00:17]} 28. h4 {[%emt 0:00:30]} h6 {[%emt 0:02:11]} 29. Bxb6 {[%emt 0:00:56]} axb6 {[%emt 0:00:15]} 30. Qxb6 {[%emt 0:00:03]} 1-0

[Event "43. Zurich Weihnachtsopen 2019"]
[Site "Zurich/SUI"]
[Date "2019.12.27"]
[Round "2.2"]
[White "Hakimifard, Ghazal"]
[Black "Martirosyan, Haik M."]
[Result "0-1"]
[ECO "B30"]
[WhiteElo "2255"]
[BlackElo "2613"]
[Annotator "ChessBase"]
[PlyCount "46"]
[EventDate "2019.12.26"]
[EventType "swiss"]
[SourceTitle "playchess.com"]
[Source "ChessBase"]
[SourceQuality "1"]
[TimeControl "40/5400+30:1800+30"]

1. e4 {[%emt 0:00:00]} c5 {[%emt 0:00:04]} 2. Nf3 {[%emt 0:00:00]} Nc6 {[%emt 0:00:25]} 3. Bb5 {[%emt 0:00:00]} e6 {[%emt 0:00:31]} 4. O-O {[%emt 0:00:48]} Nge7 {[%emt 0:00:09]} 5. Re1 {[%emt 0:00:36]} a6 {[%emt 0:00:38]} 6. Bf1 {[%emt 0:00:07]} d5 {[%emt 0:01:23]} 7. Nc3 {[%emt 0:10:45]} d4 {[%emt 0:02:12]} 8. Ne2 {[%emt 0:00:48]} e5 {[%emt 0:02:29]} 9. Ng3 {[%emt 0:03:10]} f6 {[%emt 0:03:19]} 10. b3 {[%emt 0:09:39]} h5 {[%emt 0:10:45]} 11. Nh4 {[%emt 0:12:27]} g6 {[%emt 0:11:02]} 12. Qf3 {[%emt 0:08:01]} Bh6 {[%emt 0:09:06]} 13. Nxh5 {[%emt 0:19:58]} gxh5 {[%emt 0:00:44]} 14. Qxf6 {[%emt 0:00:10]} Kd7 {[%emt 0:00:59]} 15. Nf5 {[%emt 0:07:09]} Nxf5 {[%emt 0:01:49]} 16. Qxf5+ {[%emt 0:00:06]} Ke7 {[%emt 0:01:46]} 17. Qf3 {[%emt 0:03:16]} Bg4 {[%emt 0:00:27]} 18. Qg3 {[%emt 0:00:03]} Bf4 {[%emt 0:00:54]} 19. Qh4+ {[%emt 0:00:01]} Kd6 {[%emt 0:00:09]} 20. Qxd8+ {[%emt 0:00:07]} Raxd8 {[%emt 0:00:05]} 21. d3 {[%emt 0:02:19]} h4 {[%emt 0:00:40]} 22. g3 {[%emt 0:04:03]} Bxc1 {[%emt 0:00:28]} 23. Raxc1 {[%emt 0:00:01]} Rdf8 {[%emt 0:00:38]} 0-1

[Event "43. Zurich Weihnachtsopen 2019"]
[Site "Zurich/SUI"]
[Date "2019.12.27"]
[Round "2.3"]
[White "Svane, Rasmus"]
[Black "Spiric, Igor"]
[Result "1-0"]
[ECO "B22"]
[WhiteElo "2597"]
[BlackElo "2239"]
[Annotator "ChessBase"]
[PlyCount "53"]
[EventDate "2019.12.26"]
[EventType "swiss"]
[SourceTitle "playchess.com"]
[Source "ChessBase"]
[SourceQuality "1"]
[TimeControl "40/5400+30:1800+30"]

1. e4 {[%emt 0:00:00]} c5 {[%emt 0:00:31]} 2. Nf3 {[%emt 0:00:00]} e6 {[%emt 0:01:18]} 3. c3 {[%emt 0:04:35]} Nf6 {[%emt 0:08:56]} 4. e5 {[%emt 0:00:08]} Nd5 {[%emt 0:00:06]} 5. d4 {[%emt 0:00:45]} cxd4 {[%emt 0:00:35]} 6. cxd4 {[%emt 0:00:07]} Qa5+ {[%emt 0:04:49]} 7. Bd2 {[%emt 0:06:09]} Bb4 {[%emt 0:01:12]} 8. Bc4 {[%emt 0:02:39]} Bxd2+ {[%emt 0:15:44]} 9. Nbxd2 {[%emt 0:00:13]} b6 {[%emt 0:14:03]} 10. a3 {[%emt 0:03:16]} b5 {[%emt 0:00:15]} 11. Bxd5 {[%emt 0:00:32]} exd5 {[%emt 0:00:05]} 12. O-O {[%emt 0:01:09]} O-O {[%emt 0:01:36]} 13. Qc2 {[%emt 0:05:07]} Qb6 {[%emt 0:03:03]} 14. Rfc1 {[%emt 0:01:51]} Bb7 {[%emt 0:01:57]} 15. Nb3 {[%emt 0:09:03]} Na6 {[%emt 0:04:08]} 16. Qf5 {[%emt 0:15:14]} Qe6 {[%emt 0:07:51]} 17. Qxe6 {[%emt 0:01:53]} fxe6 {[%emt 0:00:13]} 18. Na5 {[%emt 0:10:42]} Rab8 {[%emt 0:00:11]} 19. b4 {[%emt 0:06:18]} Rf4 {[%emt 0:04:17]} 20. Rc3 {[%emt 0:02:36]} Ba8 {[%emt 0:12:29]} 21. g3 {[%emt 0:02:07]} Rxf3 {[%emt 0:04:39]} 22. Rxf3 {[%emt 0:00:08]} Rc8 {[%emt 0:00:04]} 23. Rd1 {[%emt 0:03:41]} Nb8 {[%emt 0:02:36]} 24. Rdd3 {[%emt 0:02:03]} Rc1+ {[%emt 0:00:06]} 25. Kg2 {[%emt 0:00:05]} Rc4 {[%emt 0:00:05]} 26. Rf4 {[%emt 0:00:29]} Nc6 {[%emt 0:00:28]} 27. Rdf3 {[%emt 0:00:19]} 1-0

[Event "43. Zurich Weihnachtsopen 2019"]
[Site "Zurich/SUI"]
[Date "2019.12.27"]
[Round "2.4"]
[White "Ludwig, Peter"]
[Black "Wagner, Dennis"]
[Result "0-1"]
[ECO "A37"]
[WhiteElo "2186"]
[BlackElo "2578"]
[Annotator "ChessBase"]
[PlyCount "66"]
[EventDate "2019.12.26"]
[EventType "swiss"]
[SourceTitle "playchess.com"]
[Source "ChessBase"]
[SourceQuality "1"]
[TimeControl "40/5400+30:1800+30"]

1. Nf3 {[%emt 0:00:00]} g6 {[%emt 0:00:00]} 2. g3 {[%emt 0:04:24]} Bg7 {[%emt 0:00:00]} 3. Bg2 {[%emt 0:00:09]} c5 {[%emt 0:00:07]} 4. c4 {[%emt 0:00:12]} Nc6 {[%emt 0:00:12]} 5. Nc3 {[%emt 0:00:42]} d6 {[%emt 0:00:05]} 6. O-O {[%emt 0:01:24]} Be6 {[%emt 0:03:10]} 7. Ng5 {[%emt 0:07:17]} Bxc4 {[%emt 0:01:54]} 8. Qa4 {[%emt 0:27:15]} h6 {[%emt 0:00:13]} 9. Bxc6+ {[%emt 0:05:31]} bxc6 {[%emt 0:00:08]} 10. Qxc6+ {[%emt 0:00:22]} Kf8 {[%emt 0:00:07]} 11. d3 {[%emt 0:00:07]} hxg5 {[%emt 0:04:02]} 12. dxc4 {[%emt 0:01:25]} g4 {[%emt 0:09:54]} 13. Bg5 {[%emt 0:10:59]} Bxc3 {[%emt 0:18:35]} 14. bxc3 {[%emt 0:00:09]} Rh5 {[%emt 0:00:05]} 15. Bf4 {[%emt 0:03:37]} Nf6 {[%emt 0:03:51]} 16. Rab1 {[%emt 0:01:53]} Rc8 {[%emt 0:02:01]} 17. Qb7 {[%emt 0:13:28]} Kg7 {[%emt 0:01:07]} 18. h4 {[%emt 0:00:41]} gxh3 {[%emt 0:00:42]} 19. f3 {[%emt 0:02:11]} Rc7 {[%emt 0:21:50]} 20. Qb2 {[%emt 0:02:29]} Qd7 {[%emt 0:00:53]} 21. Kh2 {[%emt 0:00:30]} Qe6 {[%emt 0:00:40]} 22. e4 {[%emt 0:08:18]} Qxc4 {[%emt 0:00:31]} 23. Qd2 {[%emt 0:00:04]} Nd7 {[%emt 0:07:06]} 24. g4 {[%emt 0:02:44]} Rh8 {[%emt 0:00:05]} 25. Kg3 {[%emt 0:00:06]} Rb7 {[%emt 0:07:57]} 26. Rh1 {[%emt 0:02:42]} Rxb1 {[%emt 0:00:06]} 27. Rxb1 {[%emt 0:00:02]} Nb6 {[%emt 0:04:16]} 28. Rh1 {[%emt 0:00:39]} Na4 {[%emt 0:00:31]} 29. Rxh3 {[%emt 0:00:06]} Rxh3+ {[%emt 0:00:07]} 30. Kxh3 {[%emt 0:00:03]} Nxc3 {[%emt 0:02:56]} 31. Bh6+ {[%emt 0:00:53]} Kg8 {[%emt 0:01:35]} 32. e5 {[%emt 0:00:47]} Qf1+ {[%emt 0:03:20]} 33. Kh4 {[%emt 0:00:22]} Qxf3 {[%emt 0:00:46]} 0-1